bitfinex-derivatives/quotes_ETHF0:USTF0_20250709
["timestamp","ask_amount","ask_price","bid_price","bid_amount"]
[1752063744563,1.301,2654.5,2654.3,0.75337]
[1752063744753,1.301,2654.5,2654.4,0.75335]
[1752063744956,3.2078,2654.8,2654.4,3.2078]
[1752063745159,0.75332,2654.6,2654.1,4.4789]
[1752063745364,0.75329,2654.7,2654.5,0.75333]
[1752063745557,4.4441,2654.8,2654.2,3.15462]
[1752063745863,5.19736,2654.8,2654.7,0.75327]
[1752063746064,0.75328,2654.7,2654.4,3.2078]
[1752063746266,1.2363,2654.8,2654.4,3.2078]
[1752063746564,1.2363,2654.8,2654.5,0.75333]
[1752063746565,0.75332,2654.6,2654.5,0.75333]
[1752063746864,0.75328,2654.7,2654.6,0.75329]
[1752063747362,0.75331,2654.6,2654.2,1.2711]
[1752063747563,1.2363,2654.8,2654.5,0.75332]
[1752063747756,1.3719,2655.0,2654.4,3.2078]
[1752063747960,0.75325,2654.8,2654.7,0.75326]
[1752063748559,0.75325,2654.8,2654.7,0.75325]
[1752063748956,2.6656,2655.0,2654.5,0.75333]
[1752063749156,0.75323,2654.9,2654.8,0.75322]
[1752063749364,0.75328,2654.7,2654.6,0.75327]
[1752063749565,0.75331,2654.6,2654.5,0.75331]
[1752063750160,0.75329,2654.7,2654.6,0.75329]
[1752063750664,0.75331,2654.6,2654.5,0.75331]
[1752063752058,5.1179,2655.0,2654.4,1.88339]
[1752063752263,0.75325,2654.8,2654.7,0.75325]
[1752063752564,0.75326,2654.8,2654.7,0.75325]
[1752063753269,0.75327,2654.8,2654.7,0.75326]
[1752063753467,0.75327,2654.8,2654.5,1.2733]
[1752063753468,0.75329,2654.7,2654.6,0.75328]
[1752063753661,0.75329,2654.7,2654.5,1.2733]
[1752063753662,0.75326,2654.8,2654.7,0.75325]
[1752063755665,3.746,2655.0,2654.5,1.2733]
[1752063755962,0.75324,2654.8,2654.7,3.2078]
[1752063756161,0.75323,2654.9,2654.8,0.75323]
[1752063756356,4.4992,2655.0,2654.9,0.75321]
[1752063756558,0.7532,2655.0,2654.9,0.75321]
[1752063757164,0.75318,2655.0,2654.9,0.75321]
[1752063757365,4.538,2655.2,2655.0,0.75317]
[1752063757564,0.75318,2655.1,2655.0,0.75317]
[1752063758365,4.538,2655.2,2654.8,0.0056544]
[1752063758573,0.75319,2655.1,2655.0,0.75317]
[1752063761072,0.7532,2655.0,2654.9,0.75318]
[1752063761572,0.75317,2655.1,2655.0,0.75316]
[1752063762763,0.75321,2654.9,2654.8,0.7588644]
[1752063763067,0.83066979,2656.9,2656.8,0.75267]
[1752063763268,0.75252,2657.4,2657.2,0.75254]
[1752063763471,0.75247,2657.6,2657.4,0.7525]
[1752063763769,32.7647,2658.1,2657.5,2.07261214]
[1752063763770,1.3649,2658.1,2657.5,2.07261214]
[1752063763966,1.3649,2658.1,2657.3,3.2078]
[1752063763967,0.75223,2658.4,2658.0,3.2078]
[1752063764163,1.3649,2658.6,2658.0,3.2078]
[1752063764369,0.75233,2658.1,2657.7,4.5765]
[1752063764569,0.75233,2658.1,2657.9,0.75236]
[1752063764772,0.7523,2658.2,2657.9,0.75236]
[1752063765074,0.75227,2658.3,2658.0,3.96013]
[1752063765268,0.75228,2658.2,2658.0,3.2078]
[1752063765475,4.5727,2658.6,2658.0,3.96013]
[1752063765668,0.75226,2658.3,2658.0,3.96013]
[1752063766074,0.75224,2658.4,2658.0,3.96013]
[1752063766376,0.75225,2658.3,2658.0,3.96012]
[1752063766668,2.07261214,2658.2,2657.7,3.2078]
[1752063766976,0.75235,2658.0,2657.7,3.96021]
[1752063767272,2.05897,2657.9,2657.7,3.2078]
[1752063768770,28.164,2658.4,2658.2,0.75226]
[1752063768971,0.75221,2658.5,2658.2,0.75226]
[1752063769172,28.91117,2658.6,2658.3,0.75223]
[1752063769572,30.25676,2658.6,2658.4,0.75221]
[1752063769772,0.75222,2658.5,2658.3,3.2078]
[1752063769975,30.25678,2658.6,2658.3,3.96003]
[1752063770175,1.3456,2658.6,2658.3,3.96003]
[1752063770378,29.4936,2658.6,2658.5,0.75219]
[1752063770674,29.4936,2658.6,2658.4,0.7522]
[1752063770869,29.4936,2658.6,2658.3,3.2078]
[1752063770870,28.146,2658.7,2658.6,0.75216]
[1752063771176,0.75215,2658.7,2658.3,3.2078]
[1752063771378,0.75217,2658.6,2658.4,0.75221]
[1752063771571,0.75219,2658.5,2658.4,0.00564366]
[1752063771971,1.2391,2658.7,2658.4,0.00564366]
[1752063772275,3.2078,2659.0,2658.6,0.75216]
[1752063772276,0.75213,2658.8,2658.6,0.75216]
[1752063772676,0.75212,2658.8,2658.6,0.75216]
[1752063772877,28.142,2658.9,2658.4,0.00564366]
[1752063773078,0.75218,2658.6,2658.5,0.75219]
[1752063773279,1.2391,2658.8,2658.4,0.75785366]
[1752063773478,1.2391,2658.8,2658.5,0.75219]
[1752063773680,0.75216,2658.6,2658.4,0.75784366]
[1752063773875,0.75219,2658.5,2658.4,0.00564366]
[1752063774773,0.75233,2658.0,2657.9,3.2078]
[1752063775577,28.128,2658.3,2657.9,3.96016]
[1752063775776,0.75236,2658.0,2657.8,0.75237]
[1752063775976,31.28525,2658.3,2657.8,0.75237]
[1752063776278,0.75238,2657.9,2657.7,0.75241]
[1752063776678,0.75238,2657.9,2657.8,0.75239]
[1752063776879,1.8807,2658.2,2657.8,0.75239]
[1752063777177,0.75237,2657.9,2657.8,0.75239]
[1752063777578,0.75237,2657.9,2657.7,0.7524]
[1752063777779,0.75239,2657.9,2657.7,0.7524]
[1752063777980,0.75239,2657.8,2657.7,0.75241]
[1752063778174,0.75235,2658.0,2657.6,3.2078]
[1752063778379,1.2451,2658.1,2657.6,3.2078]
[1752063778380,1.99743,2658.1,2657.6,5.0889]
[1752063778575,3.21344366,2658.7,2658.2,0.75228]
[1752063778780,0.75223,2658.4,2658.0,3.2078]
[1752063778976,1.88600366,2658.7,2658.0,4.5707]
[1752063778977,29.99200366,2658.7,2658.0,4.5707]
[1752063779178,0.00564366,2658.7,2658.3,3.2078]
[1752063779680,0.75778366,2658.7,2658.6,0.75216]
[1752063779874,0.00564366,2658.7,2658.3,4.5707]
[1752063780075,0.75218,2658.6,2658.5,0.75219]
[1752063780281,0.00564366,2658.7,2658.6,0.75216]
[1752063780682,0.75780366,2658.7,2658.5,0.75217]
[1752063780983,0.75216,2658.6,2658.4,0.7522]
[1752063781577,0.00564366,2658.7,2658.3,3.2078]
[1752063781881,0.75222,2658.4,2658.3,3.2078]
[1752063782076,0.75222,2658.4,2658.3,3.96005]
[1752063782276,0.75222,2658.4,2658.3,3.2078]
[1752063782473,1.88075,2658.2,2657.6,3.2078]
[1752063782680,1.88075,2658.2,2657.9,0.75236]
[1752063782881,1.2668,2658.1,2657.8,0.75237]
[1752063783077,0.75236,2657.9,2657.8,0.75237]
[1752063783277,0.75239,2657.8,2657.7,0.7524]
[1752063783478,3.75746971,2658.3,2657.6,3.2078]
[1752063783479,1.3235,2658.3,2657.6,5.0889]
[1752063783697,2.5935,2658.3,2657.6,3.2078]
[1752063783983,0.75232,2658.1,2658.0,0.75233]
[1752063784184,0.75231,2658.1,2658.0,0.75232]
[1752063784383,0.75229,2658.2,2658.1,0.7523]
[1752063784779,0.75233,2658.1,2657.9,3.2078]
[1752063785077,0.75233,2658.1,2658.0,0.75233]
[1752063785278,0.75233,2658.1,2657.9,3.2078]
[1752063785279,0.75229,2658.2,2658.1,0.7523]
[1752063785681,0.75228,2658.2,2658.1,0.75229]
[1752063786073,0.75226,2658.3,2658.2,0.75227]
[1752063786484,1.88051,2658.5,2657.9,3.2078]
[1752063786689,0.75233,2658.0,2657.8,0.75237]
[1752063786879,5.08839,2658.4,2658.0,0.75231]
[1752063787081,1.2822,2658.3,2657.9,0.75234]
[1752063787283,0.75233,2658.0,2657.9,0.75234]
[1752063787483,0.75233,2658.0,2657.9,1.2404674]
[1752063787686,1.2822,2658.3,2657.9,1.2404674]
[1752063787982,0.75233,2658.1,2658.0,1.2404574]
[1752063788185,1.2822,2658.3,2658.0,0.4881274]
[1752063788378,0.7523,2658.2,2658.1,0.4881274]
[1752063789087,0.7523,2658.2,2657.6,3.2078]
[1752063789088,5.0,2658.2,2657.6,3.2078]
[1752063789281,4.4905,2658.1,2657.6,3.2078]
[1752063789480,0.75235,2658.0,2657.9,0.75235]
[1752063789685,5.24282,2658.1,2658.0,0.75233]
[1752063789886,3.96012,2658.1,2658.0,0.75233]
[1752063790284,0.75235,2658.0,2657.9,0.75234]
[1752063790481,0.75235,2658.0,2657.6,6.35361]
[1752063790482,3.2078,2658.1,2657.6,4.4725]
[1752063790683,5.08859,2658.1,2657.7,1.75691305]
[1752063790884,0.75241,2657.8,2657.7,0.75241]
[1752063791085,0.75241,2657.8,2657.7,1.75696064]
[1752063791286,0.75241,2657.8,2657.7,2.50938064]
[1752063791489,0.75238,2657.9,2657.8,0.75239]
[1752063791790,0.75238,2657.9,2657.8,1.75696064]
[1752063792486,2.03505,2658.0,2657.9,0.75236]
[1752063792682,2.03505,2658.0,2657.9,2.50932064]
[1752063792879,0.75235,2658.0,2657.9,2.50932064]
[1752063793077,0.75235,2658.0,2657.9,3.40133697]
[1752063793286,0.75235,2658.0,2657.9,1.75696064]
[1752063793784,0.75235,2658.0,2657.9,3.92335353]
[1752063793991,0.75235,2658.0,2657.9,1.75696064]
[1752063795390,0.75235,2658.0,2657.9,3.95679559]
[1752063796593,2.00825,2658.0,2657.9,3.95679559]
[1752063796785,2.00825,2658.0,2657.9,2.19983495]
[1752063796987,2.00825,2658.0,2657.9,1.72281655]
[1752063797485,2.00825,2658.0,2657.9,3.37287718]
[1752063797681,2.00825,2658.0,2657.9,1.72281655]
[1752063800587,32.10287689,2658.0,2657.9,1.72281655]
[1752063801091,4.08187689,2658.0,2657.9,1.72281655]
[1752063801291,32.10187689,2658.0,2657.9,1.72281655]
[1752063802487,2.00825,2658.0,2657.9,1.72281655]
[1752063802792,30.02425,2658.0,2657.9,1.72281655]
[1752063802994,2.00825,2658.0,2657.9,1.72281655]
[1752063803191,30.02225,2658.0,2657.9,1.72281655]
[1752063803489,0.75233,2658.0,2657.9,1.72281655]
[1752063803690,28.76333,2658.0,2657.9,1.72281655]
[1752063804293,28.01,2658.0,2657.9,3.37287718]
[1752063804597,3.2078,2658.2,2657.9,3.37287718]
[1752063804891,28.005,2658.3,2658.1,2.19983495]
[1752063805096,0.75228,2658.2,2658.1,0.75231]
[1752063805296,28.003,2658.3,2658.1,1.69358118]
[1752063805486,28.75525,2658.3,2658.2,3.34231677]
[1752063806292,28.75525,2658.3,2658.2,1.69358118]
[1752063806495,0.75236,2657.9,2657.8,1.64873559]
[1752063806696,28.75036,2657.9,2657.8,3.32133603]
[1752063807497,28.74636,2657.9,2657.8,1.67260044]
[1752063809996,0.75236,2657.9,2657.8,1.67260044]
[1752063810198,28.73536,2657.9,2657.8,1.67260044]
[1752063810698,0.75236,2657.9,2657.8,1.67260044]
[1752063810900,28.73536,2657.9,2657.8,1.67260044]
[1752063811192,0.75236,2657.9,2657.8,1.67260044]
[1752063811399,28.73036,2657.9,2657.8,1.67260044]
[1752063811900,0.75236,2657.9,2657.8,1.67260044]
[1752063812092,1.3539,2658.4,2657.8,4.68563603]
[1752063812093,6.44226,2658.4,2657.8,4.68563603]
[1752063812294,0.75233,2658.0,2657.9,1.67260044]
[1752063812491,0.75233,2658.0,2657.9,3.78926044]
[1752063812900,0.75233,2658.0,2657.9,3.03690044]
[1752063814001,0.75233,2658.0,2657.9,3.78926044]
[1752063814197,0.75233,2658.0,2657.9,3.03690044]
[1752063814792,0.75233,2658.0,2657.9,3.78926044]
[1752063815696,28.71929,2658.2,2657.9,4.68563603]
[1752063815898,0.75233,2658.1,2658.0,1.67260044]
[1752063817499,0.75233,2658.1,2658.0,2.42493044]
[1752063817700,0.75233,2658.1,2658.0,1.67260044]
[1752063822401,54.204,2658.6,2658.0,4.88040044]
[1752063822598,0.75227,2658.3,2658.1,5.38483603]
[1752063822801,0.75227,2658.3,2658.2,2.96430044]
[1752063823497,0.75227,2658.3,2658.2,1.67260044]
[1752063825402,2.07527,2658.3,2658.2,1.67260044]
[1752063825597,0.75236,2657.9,2657.8,1.64873559]
[1752063825803,28.66936,2657.9,2657.8,3.30969846]
[1752063826407,28.66936,2657.9,2657.8,1.66096287]
[1752063827501,0.75236,2657.9,2657.8,1.66096287]
[1752063827703,27.907,2658.0,2657.8,1.66096287]
[1752063827903,28.65933,2658.0,2657.9,1.66096287]
[1752063831211,30.03113,2658.0,2657.9,1.66096287]
[1752063832504,2.12413,2658.0,2657.9,1.66096287]
[1752063832811,0.75232,2658.1,2657.9,2.41331287]
[1752063833012,0.75232,2658.1,2658.0,1.66096287]
[1752063835215,0.7523,2658.2,2658.0,2.41329287]
[1752063835414,28.62728,2658.2,2658.1,1.66096287]
[1752063838411,27.866,2658.3,2658.1,5.62106287]
[1752063838613,1.3661,2658.5,2658.2,1.66096287]
[1752063838810,0.75228,2658.2,2658.1,3.2078]
[1752063839006,0.75228,2658.2,2658.1,4.87097203]
[1752063839905,0.75228,2658.2,2658.1,5.62328203]
[1752063840320,2.6297,2658.5,2658.1,4.87097203]
[1752063840616,27.852,2658.4,2658.1,3.96009]
[1752063840812,0.75228,2658.2,2658.1,3.96009]
[1752063841013,27.852,2658.4,2658.2,0.75227]
[1752063841216,0.75225,2658.3,2658.2,0.75227]
[1752063841414,28.60423,2658.4,2658.3,0.75225]
[1752063841617,28.60423,2658.4,2658.3,2.41665414]
[1752063842015,0.75217,2658.6,2658.3,1.66440414]
[1752063842214,0.75219,2658.5,2658.4,3.2078]
[1752063842413,0.75219,2658.5,2658.4,4.87167362]
[1752063844314,0.75228,2658.2,2658.1,5.60883559]
[1752063844618,0.75228,2658.2,2658.1,7.26991148]
[1752063845123,0.75228,2658.2,2658.1,5.62117589]
[1752063846015,0.75228,2658.2,2658.1,4.86887589]
[1752063847121,54.20464366,2658.7,2658.5,0.75218]
[1752063847425,27.82464366,2658.7,2658.6,0.75216]
[1752063847823,0.00564366,2658.7,2658.6,0.75216]
[1752063848124,27.82164366,2658.7,2658.6,3.7517154]
[1752063848828,0.00564366,2658.7,2658.6,3.7517154]
[1752063849019,0.00564366,2658.7,2658.6,2.4103154]
[1752063849220,0.75778366,2658.7,2658.6,1.6581554]
[1752063849619,0.75778366,2658.7,2658.6,2.4103154]
[1752063849825,0.75778366,2658.7,2658.6,1.6581554]
[1752063851220,0.00564366,2658.7,2658.6,2.4103154]
[1752063851522,0.00564366,2658.7,2658.6,3.7610154]
[1752063852115,0.75778366,2658.7,2658.6,3.7610154]
[1752063852522,0.00564366,2658.7,2658.6,3.7610154]
[1752063854427,0.75778366,2658.7,2658.6,3.7610154]
[1752063855525,0.75778366,2658.7,2658.6,3.0088554]
[1752063855723,0.75778366,2658.7,2658.6,2.4103154]
[1752063856325,0.75778366,2658.7,2658.6,1.6581554]
[1752063856526,0.75778366,2658.7,2658.6,2.4103154]
[1752063856830,0.75778366,2658.7,2658.6,1.6581554]
[1752063857225,0.75219,2658.5,2658.4,3.2078]
[1752063857422,0.75219,2658.5,2658.4,4.86178252]
[1752063857626,0.75219,2658.6,2658.4,4.86178252]
[1752063857827,0.75218,2658.6,2658.5,2.40615252]
[1752063858129,0.75218,2658.6,2658.5,1.65398252]
[1752063858329,0.75218,2658.6,2658.5,2.40617252]
[1752063858534,0.75218,2658.6,2658.5,1.65398252]
[1752063860530,0.00564366,2658.7,2658.4,3.2078]
[1752063860531,0.75219,2658.5,2658.4,3.2078]
[1752063860723,0.75219,2658.5,2658.4,1.65493483]
[1752063860724,1.99639,2658.5,2658.4,1.65493483]
[1752063861122,1.99639,2658.5,2658.1,6.08743559]
[1752063861123,0.75222,2658.4,2658.3,0.75224]
[1752063861321,0.75222,2658.4,2658.1,6.07943628]
[1752063861322,28.50880366,2658.7,2658.5,0.75217]
[1752063861524,0.75216,2658.6,2658.5,0.75217]
[1752063861728,0.75218,2658.6,2658.5,0.75219]
[1752063861924,0.75216,2658.6,2658.4,0.7522]
[1752063862124,0.75216,2658.6,2658.5,0.75219]
[1752063863231,0.75219,2658.5,2658.4,3.96]
[1752063863432,0.75219,2658.5,2658.4,5.61620365]
[1752063863632,0.75219,2658.6,2658.5,0.75218]
[1752063864023,0.75219,2658.5,2658.4,3.96]
[1752063864229,0.75219,2658.6,2658.5,0.75218]
[1752063864731,0.75219,2658.6,2658.5,2.408687]
[1752063864933,0.75780366,2658.7,2658.6,0.75216]
[1752063866031,0.75778366,2658.7,2658.6,0.75216]
[1752063866335,0.00564366,2658.7,2658.5,0.75217]
[1752063866633,0.75218,2658.6,2658.5,0.75217]
[1752063866834,0.75780366,2658.7,2658.6,0.75216]
[1752063867428,0.75780366,2658.7,2658.6,1.67269643]
[1752063867635,0.75780366,2658.7,2658.5,0.75218]
[1752063867636,0.75219,2658.6,2658.5,0.75218]
[1752063867838,0.75219,2658.6,2658.5,2.42493322]
[1752063868037,0.75780366,2658.7,2658.6,0.75216]
[1752063868239,0.75780366,2658.7,2658.6,2.42491322]
[1752063868532,0.00564366,2658.7,2658.6,2.42491322]
[1752063868738,0.75778366,2658.7,2658.6,2.42491322]
[1752063869341,0.75778366,2658.7,2658.6,1.67275322]
[1752063869740,0.75778366,2658.7,2658.6,2.42491322]
[1752063870340,0.75778366,2658.7,2658.6,1.67275322]
[1752063870537,0.75778366,2658.7,2658.6,2.42491322]
[1752063870839,0.75778366,2658.7,2658.6,1.67275322]
[1752063875244,2.04618366,2658.7,2658.6,1.67275322]
[1752063877748,0.00564366,2658.7,2658.6,7.42491322]
[1752063877950,0.00564366,2658.7,2658.6,5.71375387]
[1752063878141,0.00564366,2658.7,2658.6,3.52092962]
[1752063878443,0.00564366,2658.7,2658.6,4.82222962]
[1752063879547,2.5453,2659.5,2658.7,1.88035]
[1752063879745,2.5453,2659.5,2659.2,3.95978]
[1752063879746,0.75197,2659.3,2659.2,3.95978]
[1752063879949,0.75197,2659.3,2659.2,5.63253322]
[1752063880247,0.75197,2659.3,2659.2,3.95978]
[1752063881144,2.5453,2659.5,2659.2,3.2078]
[1752063881339,55.40349604,2662.1,2659.8,0.7518]
[1752063881340,0.75178,2660.0,2659.8,0.7518]
[1752063881542,7.64955204,2660.6,2660.1,1.87936]
[1752063881842,3.2078,2661.0,2660.4,4.3038164]
[1752063882043,3.2078,2661.0,2660.6,1.0960164]
[1752063882243,4.4788,2661.0,2660.4,4.3038164]
[1752063882443,0.75159,2660.7,2660.5,0.75162]
[1752063882643,0.7516,2660.6,2660.4,5.0554464]
[1752063883250,3.2078,2661.0,2660.4,4.3038164]
[1752063883450,0.75153,2660.9,2660.8,3.2078]
[1752063883750,0.75145,2661.2,2661.0,0.75148]
[1752063884044,2.4236164,2661.8,2661.1,3.2078]
[1752063884252,0.75135,2661.5,2661.4,3.2078]
[1752063884552,3.7078,2662.0,2661.4,3.2078]
[1752063884553,0.5,2662.0,2661.4,4.3038164]
[1752063884746,0.5,2662.0,2661.9,1.0960164]
[1752063884946,1.2512,2662.0,2661.9,3.2078]
[1752063885150,0.5,2662.0,2661.9,3.2078]
[1752063886746,1.2512,2662.0,2661.9,3.2078]
[1752063886945,0.5,2662.0,2661.9,3.2078]
[1752063887146,0.5,2662.0,2661.9,5.27480993]
[1752063887751,1.2512,2662.0,2661.9,5.27480993]
[1752063887950,0.5,2662.0,2661.9,5.27480993]
[1752063888246,0.5,2662.0,2661.9,6.02603993]
[1752063889554,0.0118726,2662.0,2661.9,11.02603993]
[1752063889746,0.0118726,2662.0,2661.9,12.33223993]
[1752063890752,0.0118726,2662.0,2661.9,12.81983689]
[1752063890956,0.0118726,2662.0,2661.9,7.81983689]
[1752063891155,0.0118726,2662.0,2661.9,7.81986936]
[1752063891358,0.0118726,2662.0,2661.9,7.33223993]
[1752063891752,0.7630726,2662.0,2661.9,3.2078]
[1752063892255,0.0118726,2662.0,2661.9,6.02603993]
[1752063892653,0.0118726,2662.0,2661.9,11.02603993]
[1752063892852,0.0118726,2662.0,2661.9,4.44551939]
[1752063893054,0.0118726,2662.0,2661.9,3.95903]
[1752063893453,0.7630726,2662.0,2661.9,3.95903]
[1752063893654,0.0118726,2662.0,2661.9,3.95903]
[1752063893854,0.0118726,2662.0,2661.9,6.02603993]
[1752063894251,0.0118726,2662.0,2661.9,3.2078]
[1752063894453,0.0118726,2662.0,2661.6,3.2078]
[1752063894454,0.75131,2661.7,2661.6,3.2078]
[1752063894649,0.75131,2661.7,2661.6,3.6936594]
[1752063894858,0.75131,2661.7,2661.6,0.4858594]
[1752063895554,1.262,2661.9,2661.6,3.6936594]
[1752063895762,0.0118726,2662.0,2661.9,0.75123]
[1752063895963,0.0118726,2662.0,2661.9,6.02603993]
[1752063897058,0.0118726,2662.0,2661.9,7.34933993]
[1752063897758,0.0118726,2662.0,2661.9,12.34933993]
[1752063897952,2.6e-06,2662.0,2661.9,12.34933993]
[1752063898553,2.6e-06,2662.0,2661.9,12.83599154]
[1752063898751,2.6e-06,2662.0,2661.9,5.76898161]
[1752063900561,2.6e-06,2662.0,2661.9,5.76885346]
[1752063902256,2.6e-06,2662.0,2661.9,5.77160963]
[1752063902556,2.6e-06,2662.0,2661.9,3.69707963]
[1752063902862,0.75129,2661.7,2661.6,3.2078]
[1752063903161,3.2225,2661.9,2661.2,3.2078]
[1752063903364,0.75139,2661.4,2661.3,0.75138]
[1752063903557,3.2078,2661.8,2661.4,0.75136]
[1752063903558,0.75136,2661.5,2661.4,0.75136]
[1752063903865,0.75134,2661.6,2661.4,1.2405235]
[1752063904159,0.7514,2661.3,2661.2,3.21344366]
[1752063904364,0.7514,2661.3,2661.2,0.00564366]
[1752063904659,7.06700993,2661.3,2660.4,3.2078]
[1752063904861,5.10121,2661.5,2660.4,0.75165]
[1752063904862,7.15347993,2661.1,2660.4,0.75165]
[1752063905063,0.75167,2660.4,2660.0,3.2078]
[1752063905263,1.2389,2660.3,2660.2,0.75171]
[1752063905452,1.2389,2660.3,2660.1,0.75172]
[1752063905658,1.3302,2660.8,2660.3,0.75167]
[1752063905859,1.2389,2660.7,2660.2,0.7517]
[1752063906060,0.75164,2660.5,2660.2,0.7517]
[1752063906261,1.99056,2660.4,2660.1,0.75172]
[1752063906463,1.99056,2660.4,2660.2,0.48725666]
[1752063906658,1.2389,2660.4,2660.0,3.2078]
[1752063906964,8.11807,2660.4,2659.7,3.2078]
[1752063907165,0.75181,2659.9,2659.8,0.48741857]
[1752063907566,0.00564366,2660.1,2659.8,0.48741857]
[1752063907863,0.75179,2660.0,2659.7,0.75184]
[1752063908060,1.3091,2660.0,2659.8,0.49927023]
[1752063908262,2.06087,2660.0,2659.9,0.49927023]
[1752063908463,0.00564366,2660.1,2659.9,0.49927023]
[1752063908660,0.00564366,2660.1,2660.0,0.49927023]
[1752063909759,0.00564366,2660.1,2660.0,1.25104023]
[1752063910759,0.00564366,2660.1,2660.0,4.45884023]
[1752063910960,0.00564366,2660.1,2660.0,4.45959236]
[1752063911765,0.00564366,2660.1,2660.0,5.87949236]
[1752063912368,0.00564366,2660.1,2660.0,4.45959236]
[1752063913765,0.00564366,2660.1,2660.0,3.70782236]
[1752063913965,0.00564366,2660.1,2660.0,4.44664383]
[1752063919675,1.32254366,2660.1,2660.0,4.44664383]
[1752063919877,0.00564366,2660.1,2660.0,4.44664383]
[1752063920279,0.75738366,2660.1,2660.0,0.48707383]
[1752063920570,0.00564366,2660.1,2660.0,0.48707383]
[1752063920772,0.75738366,2660.1,2660.0,0.48707383]
[1752063922074,2.09458366,2660.1,2660.0,0.48707383]
[1752063922276,1.34284366,2660.1,2660.0,1.23884383]
[1752063922572,1.34284366,2660.1,2660.0,4.44664383]
[1752063923570,0.00564366,2660.1,2660.0,4.44664383]
[1752063925477,0.00564366,2660.1,2660.0,3.95957]
[1752063925679,0.00564366,2660.1,2660.0,4.44599806]
[1752063927275,0.75738366,2660.1,2660.0,3.69422806]
[1752063927576,0.75738366,2660.1,2660.0,4.44599806]
[1752063927779,0.75738366,2660.1,2660.0,3.69422806]
[1752063928375,0.75738366,2660.1,2660.0,3.2078]
[1752063928675,5.75738366,2660.1,2660.0,0.48668538]
[1752063928874,5.75738366,2660.1,2659.3,3.48444238]
[1752063928875,11.97221366,2660.1,2659.3,0.75196]
[1752063929081,0.75192,2659.5,2659.4,1.65663667]
[1752063929781,0.75191,2659.5,2659.4,1.65663667]
[1752063930777,0.75191,2659.5,2659.3,0.75195]
[1752063930996,0.75191,2659.5,2659.0,5.08791]
[1752063931284,0.75189,2659.6,2659.4,0.75191]
[1752063931777,0.75189,2659.6,2659.4,3.95971]
[1752063932082,1.3448,2659.7,2659.0,3.2078]
[1752063932283,0.75193,2659.5,2659.1,1.65619352]
[1752063932577,0.75193,2659.5,2659.2,2.40816352]
[1752063932775,0.75193,2659.5,2659.2,0.75197]
[1752063933175,1.3448,2659.7,2659.3,3.2078]
[1752063933376,1.3448,2659.7,2659.5,0.7519]
[1752063933779,2.09666,2659.7,2659.5,0.7519]
[1752063934083,1.3448,2659.7,2659.5,0.7519]
[1752063934287,1.3448,2659.7,2659.6,0.75188]
[1752063934576,0.75181,2659.9,2659.7,0.75185]
[1752063934776,0.75183,2659.8,2659.6,3.95966]
[1752063934982,0.75183,2659.8,2659.6,0.75186]
[1752063935183,5.87181,2659.9,2659.6,0.75186]
[1752063935381,0.75183,2659.8,2659.6,0.75186]
[1752063935577,0.75185,2659.7,2659.5,0.75189]
[1752063936285,0.75185,2659.8,2659.6,0.75187]
[1752063936484,1.3392,2659.8,2659.6,0.75187]
[1752063936681,1.3392,2659.8,2659.5,0.75189]
[1752063936878,1.3392,2659.8,2659.6,0.75188]
[1752063937076,2.09104,2659.8,2659.6,0.75188]
[1752063938082,0.75187,2659.7,2659.5,0.7519]
[1752063938284,2.09107,2659.7,2659.5,0.7519]
[1752063938485,0.75188,2659.6,2659.4,0.75192]
[1752063938684,2.14088,2659.6,2659.5,2.41343866]
[1752063938884,2.14088,2659.6,2659.5,1.66152866]
[1752063939486,2.14088,2659.6,2659.5,2.41343866]
[1752063939987,1.389,2659.6,2659.5,2.41343866]
[1752063940190,2.14088,2659.6,2659.5,1.66152866]
[1752063940390,2.14088,2659.6,2659.5,2.41343866]
[1752063940588,2.14088,2659.6,2659.5,0.75191]
[1752063940889,2.14088,2659.6,2659.4,0.75192]
[1752063940890,0.75191,2659.5,2659.4,0.75192]
[1752063941187,2.1409,2659.6,2659.4,2.41334852]
[1752063941386,0.75194,2659.4,2659.3,3.2078]
[1752063941688,0.75194,2659.4,2659.3,1.66155424]
[1752063942684,1.389,2659.6,2659.3,1.66155424]
[1752063942885,2.1409,2659.6,2659.4,2.41341499]
[1752063943086,2.1409,2659.6,2659.4,0.75192]
[1752063943284,0.75193,2659.5,2659.3,3.95977]
[1752063943478,3.746,2659.9,2659.5,0.75189]
[1752063943684,3.746,2659.9,2659.5,0.7519]
[1752063943685,0.75188,2659.6,2659.5,0.7519]
[1752063943884,1.4108,2659.8,2659.3,3.2078]
[1752063944086,0.75185,2659.7,2659.6,3.95966]
[1752063944586,1.88501366,2660.1,2659.6,3.2078]
[1752063944587,0.00564366,2660.1,2659.6,3.2078]
[1752063944884,0.75185,2659.7,2659.6,3.2078]
[1752063945190,1.87961,2659.8,2659.3,0.75195]
[1752063945392,0.75193,2659.5,2659.4,1.66145338]
[1752063945890,0.75193,2659.5,2659.4,2.41339338]
[1752063946284,0.75193,2659.5,2659.4,1.66145338]
[1752063947788,2.78,2659.7,2659.5,0.75191]
[1752063948186,0.7519,2659.6,2659.4,0.75192]
[1752063948393,0.7519,2659.6,2659.5,0.75191]
[1752063948692,0.7519,2659.6,2659.5,3.95971]
[1752063948886,0.75188,2659.6,2659.5,5.62357098]
[1752063949192,3.53186,2659.7,2659.6,0.75188]
[1752063949388,2.78,2659.7,2659.5,3.9597]
[1752063949591,0.75188,2659.6,2659.5,3.95969]
[1752063949790,0.75188,2659.6,2659.5,5.62423803]
[1752063950187,0.75188,2659.6,2659.5,4.87234803]
[1752063950588,0.75188,2659.6,2659.5,1.66454803]
[1752063950882,3.746,2659.8,2659.5,1.66454803]
[1752063951082,3.746,2659.8,2659.3,4.81191078]
[1752063951291,3.746,2659.8,2659.7,3.95965]
[1752063951490,3.746,2659.8,2659.7,5.6239879]
[1752063952692,0.00564366,2660.1,2660.0,0.75177]
[1752063952889,0.00564366,2660.1,2660.0,3.95957]